Workbook

Sheet Base Data
A1: Warm-up Period
A3: 1. Enter time-series data from replications in this sheet (up to 65,000 periods and 20 replications)
A4: 2. Copy the formulas in columns A and B in the Time Series and MSER worksheets down for as many rows as there are data points (initially there are 1,000 rows)
A5: 3. View the Time Series of the data
A6: 4. Run MSER using the Calculate button
A7: 5. Extend the graphs on both sheets if required
A9: Base Data | J9: Replications
A10: 1 | B10: 2 | C10: 3 | D10: 4 | E10: 5 | F10: 6 | G10: 7 | H10: 8 | I10: 9 | J10: 10 | K10: 11 | L10: 12 | M10: 13 | N10: 14 | O10: 15 | P10: 16 | Q10: 17 | R10: 18 | S10: 19 | T10: 20
A11: 4.615876801 | B11: 6.675364587 | C11: 6.76226429 | D11: 4.984511203 | E11: 4.501193041
A12: 6.785264847 | B12: 4.024497886 | C12: 4.647178298 | D12: 5.140161514 | E12: 6.056855355
A13: 3.618569419 | B13: 5.006392113 | C13: 7.460621721 | D13: 7.090502039 | E13: 4.828229843
A14: 6.697631918 | B14: 3.880586637 | C14: 4.41078815 | D14: 3.392065634 | E14: 4.594066519
A15: 5.697130719 | B15: 5.238029274 | C15: 6.676650112 | D15: 7.127219123 | E15: 5.928234351
A16: 5.86750168 | B16: 4.580630773 | C16: 6.400124973 | D16: 4.755207908 | E16: 4.48953384
A17: 5.620415741 | B17: 5.202310697 | C17: 6.803797742 | D17: 7.161861135 | E17: 5.815273596
A18: 7.422645943 | B18: 6.419050097 | C18: 6.363124793 | D18: 5.926355732 | E18: 3.454266666
A19: 4.539440176 | B19: 6.342007492 | C19: 5.15053866 | D19: 7.636129784 | E19: 7.16408861
A20: 8.221985607 | B20: 5.922378773 | C20: 6.847419116 | D20: 4.679529963 | E20: 3.207996982
A21: 4.710701363 | B21: 7.658727396 | C21: 5.915287433 | D21: 6.223638207 | E21: 4.683855889
A22: 8.311345361 | B22: 4.638609434 | C22: 6.989198428 | D22: 2.96986944 | E22: 4.915196492
A23: 4.048176206 | B23: 6.698404701 | C23: 4.743269677 | D23: 7.533864781 | E23: 6.160612737
A24: 8.1217756 | B24: 3.411952672 | C24: 8.149713146 | D24: 3.050870286 | E24: 4.760665969
A25: 5.268668787 | B25: 6.424643996 | C25: 4.196314726 | D25: 6.434066307 | E25: 5.069435796
A26: 6.71166982 | B26: 5.953573248 | C26: 5.72270278 | D26: 4.947531089 | E26: 6.098273041
A27: 3.17217896 | B27: 5.586921399 | C27: 5.283185725 | D27: 7.704739419 | E27: 4.504191404
A28: 7.8150941 | B28: 5.339625734 | C28: 7.702319426 | D28: 3.165137295 | E28: 7.039878996
A29: 2.893380875 | B29: 5.218015636 | C29: 5.073358205 | D29: 7.75220957 | E29: 4.220696417
A30: 6.849921516 | B30: 4.824828481 | C30: 6.936197932 | D30: 3.460301317 | E30: 5.647987659
A31: 5.016781423 | B31: 5.787256371 | C31: 5.737785344 | D31: 8.398922294 | E31: 5.63188553
A32: 7.186997472 | B32: 6.637119502 | C32: 5.578213938 | D32: 2.759265735 | E32: 6.557503029
A33: 4.259591017 | B33: 5.094986874 | C33: 8.295547032 | D33: 6.943723818 | E33: 6.529167303
A34: 7.777137138 | B34: 6.185948975 | C34: 6.309201546 | D34: 5.655326274 | E34: 5.930860219
A35: 3.96184605 | B35: 4.538433151 | C35: 5.454811661 | D35: 6.32040009 | E35: 6.033325692
A36: 7.264759188 | B36: 6.726392349 | C36: 7.381560126 | D36: 6.330983014 | E36: 6.25287518
A37: 4.893075606 | B37: 4.801954264 | C37: 5.317097389 | D37: 3.351369539 | E37: 4.56948309
A38: 6.984761355 | B38: 5.965007253 | C38: 5.91766176 | D38: 6.677213103 | E38: 5.185325301
A39: 5.936580329 | B39: 6.240513132 | C39: 7.12008902 | D39: 3.730533938 | E39: 5.142380895
A40: 4.844496411 | B40: 5.891523194 | C40: 6.015971527 | D40: 5.974320779 | E40: 5.226718239
A41: 6.329506055 | B41: 4.623041806 | C41: 6.051306116 | D41: 6.869855105 | E41: 5.011154224
A42: 5.562681279 | B42: 5.959895608 | C42: 7.162743071 | D42: 6.160614006 | E42: 4.407252242
A43: 8.083265295 | B43: 5.084208607 | C43: 4.356019963 | D43: 3.679670451 | E43: 3.511409173
A44: 5.450299754 | B44: 5.701993668 | C44: 9.152696031 | D44: 6.212495087 | E44: 6.384942238
A45: 7.534837045 | B45: 5.808858975 | C45: 7.695326254 | D45: 5.199456345 | E45: 6.364765855
A46: 4.728808361 | B46: 4.454138631 | C46: 7.246217809 | D46: 5.221368734 | E46: 3.896934322
A47: 9.626260499 | B47: 6.453841656 | C47: 7.019774563 | D47: 7.184620227 | E47: 6.330248501
A48: 4.355124574 | B48: 4.673532113 | C48: 8.682964702 | D48: 5.435092794 | E48: 7.035815077
A49: 7.622328684 | B49: 7.061609149 | C49: 5.605636105 | D49: 6.581354126 | E49: 7.277862104
A50: 4.485829101 | B50: 6.55291178 | C50: 7.976756164 | D50: 6.54752871 | E50: 5.442960221
A51: 7.857487906 | B51: 8.042009028 | C51: 6.83114044 | D51: 7.798647664 | E51: 5.462136805
A52: 6.016391707 | B52: 6.845508442 | C52: 6.645965834 | D52: 6.615031784 | E52: 6.211091751
A53: 7.116125578 | B53: 5.426785174 | C53: 6.642287151 | D53: 6.180556006 | E53: 5.980885502
A54: 7.181010271 | B54: 6.366138831 | C54: 6.274812278 | D54: 4.779256392 | E54: 6.941150399
A55: 7.431694669 | B55: 5.279835378 | C55: 7.7073088 | D55: 8.139330188 | E55: 6.189423976
A56: 6.003643907 | B56: 5.014560682 | C56: 5.866676891 | D56: 3.211058151 | E56: 5.52255365
A57: 8.351762319 | B57: 5.578027284 | C57: 8.295815333 | D57: 8.182994873 | E57: 7.185482093
A58: 8.472415282 | B58: 6.915790741 | C58: 5.928967552 | D58: 5.006683629 | E58: 4.910502612
A59: 6.583034994 | B59: 5.311716596 | C59: 8.827107607 | D59: 6.218956127 | E59: 7.762917365
A60: 7.863234229 | B60: 4.576323789 | C60: 5.481895108 | D60: 6.74598676 | E60: 4.355243169
A61: 6.175896339 | B61: 5.323145374 | C61: 7.475075988 | D61: 6.60408853 | E61: 8.236572474
A62: 6.793524566 | B62: 6.648832824 | C62: 6.064344363 | D62: 6.266714954 | E62: 5.553611607
A63: 6.658142944 | B63: 7.853535315 | C63: 8.257086623 | D63: 5.109560601 | E63: 5.024480212
A64: 7.368571707 | B64: 5.27427719 | C64: 4.611664331 | D64: 5.597192223 | E64: 6.29770515
A65: 7.76280539 | B65: 6.624797273 | C65: 7.733016291 | D65: 5.880838597 | E65: 5.293324611
A66: 8.527997399 | B66: 7.034888878 | C66: 5.564430026 | D66: 5.654715604 | E66: 7.071589379
A67: 8.020207541 | B67: 6.190577901 | C67: 7.425517641 | D67: 6.147283824 | E67: 5.936090268
A68: 6.61171994 | B68: 7.131241543 | C68: 5.131909928 | D68: 5.371632487 | E68: 5.534242727
A69: 8.287854568 | B69: 5.354817063 | C69: 8.958765134 | D69: 4.976914881 | E69: 6.251457835
A70: 5.664990172 | B70: 6.643677019 | C70: 6.906917213 | D70: 4.395490989 | E70: 6.116477945
A71: 8.472922172 | B71: 5.915686916 | C71: 7.519078719 | D71: 6.372085581 | E71: 6.763032762
A72: 4.833667244 | B72: 6.102160869 | C72: 7.679413588 | D72: 5.143366176 | E72: 5.853593452
A73: 8.479370246 | B73: 4.95525873 | C73: 6.439256628 | D73: 6.667861493 | E73: 5.919598033
A74: 7.207317268 | B74: 8.500021413 | C74: 7.882187889 | D74: 8.68084265 | E74: 5.05970426
A75: 6.918061707 | B75: 4.614876093 | C75: 8.497379592 | D75: 6.363293816 | E75: 5.100831409
A76: 7.948949851 | B76: 7.288644563 | C76: 6.905903651 | D76: 7.780094128 | E76: 5.344323059
A77: 7.031039897 | B77: 5.714323506 | C77: 8.070380687 | D77: 7.255875685 | E77: 6.172568415
A78: 7.753175066 | B78: 6.309956846 | C78: 5.793952822 | D78: 5.791845995 | E78: 6.933414606
A79: 8.058689389 | B79: 8.7096477 | C79: 7.971910352 | D79: 9.111025675 | E79: 7.335676939
A80: 6.722849823 | B80: 6.311650454 | C80: 4.551373274 | D80: 5.665566954 | E80: 6.365101554
A81: 9.35915697 | B81: 7.6262773 | C81: 8.347362085 | D81: 8.328548857 | E81: 8.172190199
A82: 8.72209624 | B82: 6.188277864 | C82: 5.419794679 | D82: 7.213867743 | E82: 7.506609287
A83: 8.317295971 | B83: 8.765404116 | C83: 10.27785537 | D83: 7.408011668 | E83: 7.960205236
A84: 6.759689518 | B84: 6.784410796 | C84: 7.849727074 | D84: 7.382991342 | E84: 4.517324931
A85: 6.948265036 | B85: 8.577519124 | C85: 7.388849912 | D85: 8.163345997 | E85: 7.833909508
A86: 5.105615938 | B86: 6.471187085 | C86: 6.103489977 | D86: 7.224829475 | E86: 4.137060123
A87: 6.576715985 | B87: 6.73260841 | C87: 8.19301754 | D87: 7.769492951 | E87: 9.561191508
A88: 6.45244311 | B88: 8.433851667 | C88: 5.09206346 | D88: 6.931286034 | E88: 5.44608063
A89: 7.302924739 | B89: 7.72391017 | C89: 8.464999471 | D89: 8.070612433 | E89: 9.659791507
A90: 8.265344303 | B90: 6.622915413 | C90: 6.262676089 | D90: 6.380841546 | E90: 5.400212479
A91: 7.90192924 | B91: 5.870643834 | C91: 8.049283014 | D91: 8.204693996 | E91: 7.917915575
A92: 8.824157097 | B92: 7.518268677 | C92: 7.259023647 | D92: 8.13260025 | E92: 7.862603053
A93: 9.05248908 | B93: 6.231029282 | C93: 7.678862432 | D93: 8.059545712 | E93: 6.440259602
A94: 8.525266138 | B94: 7.94494677 | C94: 8.170374161 | D94: 8.302732205 | E94: 7.838826524
A95: 7.770286891 | B95: 7.479777869 | C95: 7.666588032 | D95: 7.829481961 | E95: 7.292078418
A96: 7.58972331 | B96: 7.363324539 | C96: 6.737613922 | D96: 7.865227501 | E96: 8.680731422
A97: 8.175143278 | B97: 7.40921633 | C97: 8.038999108 | D97: 6.970414953 | E97: 7.42241638
A98: 8.034793675 | B98: 7.798413781 | C98: 6.092852295 | D98: 8.768316124 | E98: 7.942420076
A99: 8.218149073 | B99: 7.163978298 | C99: 8.565551512 | D99: 6.135944072 | E99: 8.791589968
A100: 7.143043348 | B100: 6.291027366 | C100: 8.214984829 | D100: 7.425579727 | E100: 7.587001146
A101: 9.034258454 | B101: 6.589933315 | C101: 8.275781581 | D101: 5.772257139 | E101: 7.978672887
A102: 9.118275012 | B102: 6.459377871 | C102: 7.455735523 | D102: 8.135574676 | E102: 6.244374609
A103: 8.866814068 | B103: 6.838688455 | C103: 8.744021541 | D103: 6.846408979 | E103: 9.095937371
A104: 8.386398747 | B104: 7.643137481 | C104: 8.211243049 | D104: 8.441342874 | E104: 5.701462773
A105: 8.370748917 | B105: 6.692240082 | C105: 9.788042158 | D105: 5.263859882 | E105: 8.963785695
A106: 8.893136483 | B106: 9.100248854 | C106: 6.204475752 | D106: 8.257132988 | E106: 6.273764981
A107: 7.844533632 | B107: 7.387770808 | C107: 7.361715581 | D107: 7.327291294 | E107: 8.949105866
A108: 9.586798088 | B108: 7.1661141 | C108: 8.114329846 | D108: 7.218805519 | E108: 6.681224408
A109: 7.525061013 | B109: 5.503048612 | C109: 7.758167187 | D109: 7.07389279 | E109: 8.054947321
A110: 6.62374171 | B110: 8.201660466 | C110: 8.613744564 | D110: 7.445409643 | E110: 5.756131352
A111: 7.382394042 | B111: 6.453479016 | C111: 7.129324813 | D111: 8.697738233 | E111: 6.964707428
A112: 9.23910782 | B112: 8.552343707 | C112: 8.297080799 | D112: 7.09782819 | E112: 6.55172168
A113: 5.737981859 | B113: 7.51350092 | C113: 7.215082579 | D113: 9.259877379 | E113: 5.854278028
A114: 8.23985498 | B114: 8.086452343 | C114: 6.123757347 | D114: 8.392840151 | E114: 7.804518352
A115: 8.730502204 | B115: 7.965400994 | C115: 7.2104875 | D115: 7.212514775 | E115: 7.985458861
A116: 8.782424619 | B116: 9.390711938 | C116: 7.198946045 | D116: 7.254379628 | E116: 6.011321166
A117: 9.452101691 | B117: 8.255679031 | C117: 7.483793559 | D117: 5.76133117 | E117: 8.518769199
A118: 8.565201591 | B118: 7.816991863 | C118: 7.559565953 | D118: 9.101109182 | E118: 8.773996061
A119: 10.10806573 | B119: 8.606623246 | C119: 7.476278669 | D119: 5.792726788 | E119: 8.217573236
A120: 6.324196448 | B120: 5.455702956 | C120: 9.825286256 | D120: 9.828349916 | E120: 6.171941809
A121: 10.03646097 | B121: 9.972648644 | C121: 7.264206239 | D121: 5.892198012 | E121: 9.238249385
A122: 7.184312132 | B122: 6.192049815 | C122: 8.859752019 | D122: 10.50590087 | E122: 6.732776253
A123: 9.765658263 | B123: 9.007992254 | C123: 5.291059992 | D123: 6.66097942 | E123: 10.15071768
A124: 7.434878653 | B124: 6.443322228 | C124: 7.263356361 | D124: 9.64007947 | E124: 6.471491756
A125: 9.838517364 | B125: 8.692927867 | C125: 8.660746716 | D125: 4.258225678 | E125: 10.51138867
A126: 6.100202948 | B126: 6.51451022 | C126: 7.300528743 | D126: 10.62612977 | E126: 8.322331541
A127: 10.44477911 | B127: 9.814881713 | C127: 7.32645661 | D127: 7.308295786 | E127: 9.371505802
A128: 6.59324395 | B128: 7.629637793 | C128: 6.905317765 | D128: 10.45689594 | E128: 8.917570415
A129: 8.262513277 | B129: 7.327174496 | C129: 8.145754018 | D129: 6.183441569 | E129: 9.074060342
A130: 6.289624947 | B130: 10.69340051 | C130: 7.548204707 | D130: 9.969737029 | E130: 9.839810352
A131: 10.10647727 | B131: 8.402111632 | C131: 6.926019008 | D131: 7.11264458 | E131: 7.875163024
A132: 7.413140016 | B132: 8.578487332 | C132: 9.066497608 | D132: 10.10803034 | E132: 7.997340741
A133: 9.499739958 | B133: 7.16852342 | C133: 6.379490225 | D133: 8.101745925 | E133: 7.891623979
A134: 7.338117917 | B134: 8.278294508 | C134: 10.49043919 | D134: 9.009881816 | E134: 8.486235591
A135: 8.973265477 | B135: 8.569973338 | C135: 8.212334843 | D135: 7.341830992 | E135: 6.442130259
A136: 7.841599141 | B136: 8.171433511 | C136: 9.646929124 | D136: 11.27066706 | E136: 9.192591696
A137: 7.269078596 | B137: 8.632550475 | C137: 8.008805418 | D137: 7.409040487 | E137: 7.155112938
A138: 9.486687251 | B138: 8.635372739 | C138: 10.03951061 | D138: 10.10041318 | E138: 8.656151172
A139: 8.050164161 | B139: 10.09411367 | C139: 8.521466568 | D139: 7.948100453 | E139: 7.803592464
A140: 9.085245642 | B140: 9.518279733 | C140: 9.037349473 | D140: 8.786047832 | E140: 9.649182895
A141: 8.941127579 | B141: 8.83860032 | C141: 6.979019328 | D141: 7.506041534 | E141: 9.127188911
A142: 9.300669401 | B142: 8.988462008 | C142: 8.158861835 | D142: 8.962746515 | E142: 10.10176185
A143: 8.07874019 | B143: 7.317518833 | C143: 8.700482368 | D143: 8.769911609 | E143: 8.890375141
A144: 8.254598969 | B144: 10.93810507 | C144: 6.592872593 | D144: 7.513329173 | E144: 7.954891176
A145: 6.678600188 | B145: 7.775018893 | C145: 7.951999594 | D145: 10.35752368 | E145: 9.682388143
A146: 7.886267198 | B146: 10.74329721 | C146: 6.838417855 | D146: 8.121994174 | E146: 7.237045713
A147: 7.560098459 | B147: 9.42814392 | C147: 11.18667032 | D147: 7.482059869 | E147: 9.635841014
A148: 8.466568261 | B148: 9.24705881 | C148: 7.930246708 | D148: 7.402216266 | E148: 8.098039873
A149: 7.887080604 | B149: 8.479951385 | C149: 9.043602731 | D149: 8.762608465 | E149: 7.799620083
A150: 9.884397394 | B150: 9.234051354 | C150: 7.665349833 | D150: 8.179524657 | E150: 7.869161192
A151: 7.170076426 | B151: 7.671719074 | C151: 7.730587859 | D151: 8.729830741 | E151: 8.58253341
A152: 8.025346286 | B152: 9.78304974 | C152: 7.568860874 | D152: 8.774726568 | E152: 8.270407853
A153: 7.665688089 | B153: 7.551222368 | C153: 9.819070688 | D153: 8.931915339 | E153: 8.191457778
A154: 7.974821873 | B154: 10.16474798 | C154: 6.328645812 | D154: 9.268897774 | E154: 8.532406357
A155: 9.587138551 | B155: 9.371147956 | C155: 8.233673649 | D155: 7.748422926 | E155: 9.452792929
A156: 8.487442178 | B156: 9.731749937 | C156: 7.725026119 | D156: 10.37187742 | E156: 8.185972042
A157: 9.934297978 | B157: 8.68511044 | C157: 8.214704397 | D157: 8.03117304 | E157: 7.647546414
A158: 7.629343541 | B158: 8.711272612 | C158: 9.252808464 | D158: 8.600772306 | E158: 9.256319823
A159: 9.743475028 | B159: 9.202761302 | C159: 10.0272104 | D159: 8.161504064 | E159: 7.710164675
A160: 9.280702099 | B160: 8.994533745 | C160: 7.757985118 | D160: 9.351739462 | E160: 9.236336035
A161: 8.004997373 | B161: 10.80123631 | C161: 10.85585843 | D161: 8.21881464 | E161: 7.195156189
A162: 8.830799844 | B162: 9.898685987 | C162: 7.639686381 | D162: 10.85826007 | E162: 7.943944033
A163: 10.10452014 | B163: 8.24626313 | C163: 9.102334674 | D163: 6.139570639 | E163: 7.520469918
A164: 9.301074034 | B164: 8.483807153 | C164: 6.26753824 | D164: 10.62313838 | E164: 8.997065934
A165: 11.95966978 | B165: 8.531120792 | C165: 11.24474611 | D165: 7.43871593 | E165: 8.149393946
A166: 8.981351084 | B166: 9.010079646 | C166: 8.49170888 | D166: 10.00580494 | E166: 8.304644919
A167: 12.10027372 | B167: 9.114340951 | C167: 9.11379299 | D167: 6.970218909 | E167: 8.445989332
A168: 8.796305153 | B168: 10.42789631 | C168: 11.11402573 | D168: 9.17309576 | E168: 9.8492238
A169: 12.83703132 | B169: 9.018261983 | C169: 10.30558414 | D169: 7.615170412 | E169: 9.153034971
A170: 8.327648076 | B170: 10.8035184 | C170: 9.242838891 | D170: 9.59158739 | E170: 8.262240172
A171: 10.68196775 | B171: 8.001060803 | C171: 10.16897064 | D171: 9.714202176 | E171: 8.333632203
A172: 10.00394204 | B172: 11.3692699 | C172: 8.251356553 | D172: 10.25143071 | E172: 9.741191402
A173: 9.317406366 | B173: 8.0373394 | C173: 11.14101637 | D173: 9.609152436 | E173: 7.397846655
A174: 9.532505589 | B174: 10.12650086 | C174: 8.60347095 | D174: 9.142772844 | E174: 9.125349869
A175: 8.111412799 | B175: 8.060880663 | C175: 10.91383132 | D175: 9.281410145 | E175: 7.75076942
A176: 11.11711762 | B176: 9.065283126 | C176: 9.049574139 | D176: 8.633263143 | E176: 9.651587998
A177: 8.152854769 | B177: 8.854977543 | C177: 11.08971909 | D177: 9.952928322 | E177: 8.376949265
A178: 9.049898186 | B178: 9.909771864 | C178: 10.44230159 | D178: 8.629550992 | E178: 11.27756606
A179: 9.98211617 | B179: 7.430578959 | C179: 10.48155392 | D179: 10.09864961 | E179: 7.738323462
A180: 9.324921352 | B180: 10.63595271 | C180: 8.2741666 | D180: 10.18763248 | E180: 9.889177003
A181: 10.47549742 | B181: 9.348066092 | C181: 10.06192139 | D181: 10.01940184 | E181: 8.196668829
A182: 8.670244043 | B182: 9.749672255 | C182: 8.390381886 | D182: 10.25090378 | E182: 9.295097093
A183: 11.61829997 | B183: 10.92765004 | C183: 9.92036127 | D183: 9.838209175 | E183: 9.075909574
A184: 8.017153682 | B184: 7.240702303 | C184: 7.343549403 | D184: 9.54930103 | E184: 9.464033948
A185: 12.60859486 | B185: 10.89543357 | C185: 10.43094277 | D185: 11.33890601 | E185: 8.466217017
A186: 7.024530135 | B186: 7.657468476 | C186: 8.422112729 | D186: 8.534973727 | E186: 11.01788454
A187: 11.23719149 | B187: 12.01077252 | C187: 9.6625535 | D187: 10.04111688 | E187: 7.126802104
A188: 7.779382426 | B188: 7.300143781 | C188: 8.128130232 | D188: 7.872331849 | E188: 11.45565758
A189: 9.905562776 | B189: 9.528745278 | C189: 9.972838456 | D189: 11.56579956 | E189: 8.822331559
A190: 7.196085966 | B190: 8.690742144 | C190: 8.826997738 | D190: 7.229485985 | E190: 12.59898389
A191: 9.749750205 | B191: 11.27375341 | C191: 9.412790865 | D191: 12.32545009 | E191: 7.291862866
A192: 8.378476403 | B192: 7.748314818 | C192: 9.554745502 | D192: 7.457069593 | E192: 12.21311538
A193: 9.979057553 | B193: 11.44054774 | C193: 7.461983707 | D193: 11.93100842 | E193: 7.183059568
A194: 7.969256856 | B194: 7.385793274 | C194: 10.56337366 | D194: 9.190270388 | E194: 11.18430098
A195: 10.73033744 | B195: 11.21105139 | C195: 10.7387481 | D195: 10.95549838 | E195: 7.660368476
A196: 8.24666246 | B196: 8.469160516 | C196: 10.53730626 | D196: 9.012772137 | E196: 10.00960549
A197: 10.23844549 | B197: 11.04299899 | C197: 10.56179574 | D197: 9.427387082 | E197: 8.643996727
A198: 11.02405177 | B198: 9.955770325 | C198: 9.474930663 | D198: 8.438765086 | E198: 10.27629976
A199: 9.708193001 | B199: 9.890175655 | C199: 9.197365191 | D199: 10.02207993 | E199: 8.420241442
A200: 11.37995314 | B200: 9.618594739 | C200: 9.7445176 | D200: 8.150776644 | E200: 10.05448354
A201: 8.957479078 | B201: 8.001580644 | C201: 10.21991774 | D201: 10.26914334 | E201: 9.063109783
A202: 12.12340241 | B202: 10.01932838 | C202: 7.503003458 | D202: 7.947701478 | E202: 12.00635619
... 808 more rows

Sheet Time Series
A1: Time Series Method
A2: Time-series of mean of replication observations
A4: Period | B4: Data
A5: 1 | B5: =IF('Base Data'!A11<>"",AVERAGE('Base Data'!A11:T11),"") -> 5.507841984
A6: 2 | B6: =IF('Base Data'!A12<>"",AVERAGE('Base Data'!A12:T12),"") -> 5.33079158
A7: 3 | B7: =IF('Base Data'!A13<>"",AVERAGE('Base Data'!A13:T13),"") -> 5.600863027
A8: 4 | B8: =IF('Base Data'!A14<>"",AVERAGE('Base Data'!A14:T14),"") -> 4.595027772
A9: 5 | B9: =IF('Base Data'!A15<>"",AVERAGE('Base Data'!A15:T15),"") -> 6.133452716
A10: 6 | B10: =IF('Base Data'!A16<>"",AVERAGE('Base Data'!A16:T16),"") -> 5.218599835
A11: 7 | B11: =IF('Base Data'!A17<>"",AVERAGE('Base Data'!A17:T17),"") -> 6.120731782
A12: 8 | B12: =IF('Base Data'!A18<>"",AVERAGE('Base Data'!A18:T18),"") -> 5.917088646
A13: 9 | B13: =IF('Base Data'!A19<>"",AVERAGE('Base Data'!A19:T19),"") -> 6.166440944
A14: 10 | B14: =IF('Base Data'!A20<>"",AVERAGE('Base Data'!A20:T20),"") -> 5.775862088
A15: 11 | B15: =IF('Base Data'!A21<>"",AVERAGE('Base Data'!A21:T21),"") -> 5.838442058
A16: 12 | B16: =IF('Base Data'!A22<>"",AVERAGE('Base Data'!A22:T22),"") -> 5.564843831
A17: 13 | B17: =IF('Base Data'!A23<>"",AVERAGE('Base Data'!A23:T23),"") -> 5.83686562
A18: 14 | B18: =IF('Base Data'!A24<>"",AVERAGE('Base Data'!A24:T24),"") -> 5.498995535
A19: 15 | B19: =IF('Base Data'!A25<>"",AVERAGE('Base Data'!A25:T25),"") -> 5.478625922
A20: 16 | B20: =IF('Base Data'!A26<>"",AVERAGE('Base Data'!A26:T26),"") -> 5.886749996
A21: 17 | B21: =IF('Base Data'!A27<>"",AVERAGE('Base Data'!A27:T27),"") -> 5.250243381
A22: 18 | B22: =IF('Base Data'!A28<>"",AVERAGE('Base Data'!A28:T28),"") -> 6.21241111
A23: 19 | B23: =IF('Base Data'!A29<>"",AVERAGE('Base Data'!A29:T29),"") -> 5.031532141
A24: 20 | B24: =IF('Base Data'!A30<>"",AVERAGE('Base Data'!A30:T30),"") -> 5.543847381
A25: 21 | B25: =IF('Base Data'!A31<>"",AVERAGE('Base Data'!A31:T31),"") -> 6.114526192
A26: 22 | B26: =IF('Base Data'!A32<>"",AVERAGE('Base Data'!A32:T32),"") -> 5.743819935
A27: 23 | B27: =IF('Base Data'!A33<>"",AVERAGE('Base Data'!A33:T33),"") -> 6.224603209
A28: 24 | B28: =IF('Base Data'!A34<>"",AVERAGE('Base Data'!A34:T34),"") -> 6.37169483
A29: 25 | B29: =IF('Base Data'!A35<>"",AVERAGE('Base Data'!A35:T35),"") -> 5.261763329
A30: 26 | B30: =IF('Base Data'!A36<>"",AVERAGE('Base Data'!A36:T36),"") -> 6.791313972
A31: 27 | B31: =IF('Base Data'!A37<>"",AVERAGE('Base Data'!A37:T37),"") -> 4.586595978
A32: 28 | B32: =IF('Base Data'!A38<>"",AVERAGE('Base Data'!A38:T38),"") -> 6.145993754
A33: 29 | B33: =IF('Base Data'!A39<>"",AVERAGE('Base Data'!A39:T39),"") -> 5.634019463
A34: 30 | B34: =IF('Base Data'!A40<>"",AVERAGE('Base Data'!A40:T40),"") -> 5.59060603
A35: 31 | B35: =IF('Base Data'!A41<>"",AVERAGE('Base Data'!A41:T41),"") -> 5.776972661
A36: 32 | B36: =IF('Base Data'!A42<>"",AVERAGE('Base Data'!A42:T42),"") -> 5.850637241
A37: 33 | B37: =IF('Base Data'!A43<>"",AVERAGE('Base Data'!A43:T43),"") -> 4.942914698
A38: 34 | B38: =IF('Base Data'!A44<>"",AVERAGE('Base Data'!A44:T44),"") -> 6.580485355
A39: 35 | B39: =IF('Base Data'!A45<>"",AVERAGE('Base Data'!A45:T45),"") -> 6.520648895
A40: 36 | B40: =IF('Base Data'!A46<>"",AVERAGE('Base Data'!A46:T46),"") -> 5.109493572
A41: 37 | B41: =IF('Base Data'!A47<>"",AVERAGE('Base Data'!A47:T47),"") -> 7.322949089
A42: 38 | B42: =IF('Base Data'!A48<>"",AVERAGE('Base Data'!A48:T48),"") -> 6.036505852
A43: 39 | B43: =IF('Base Data'!A49<>"",AVERAGE('Base Data'!A49:T49),"") -> 6.829758034
A44: 40 | B44: =IF('Base Data'!A50<>"",AVERAGE('Base Data'!A50:T50),"") -> 6.201197195
A45: 41 | B45: =IF('Base Data'!A51<>"",AVERAGE('Base Data'!A51:T51),"") -> 7.198284369
A46: 42 | B46: =IF('Base Data'!A52<>"",AVERAGE('Base Data'!A52:T52),"") -> 6.466797904
A47: 43 | B47: =IF('Base Data'!A53<>"",AVERAGE('Base Data'!A53:T53),"") -> 6.269327882
A48: 44 | B48: =IF('Base Data'!A54<>"",AVERAGE('Base Data'!A54:T54),"") -> 6.308473634
A49: 45 | B49: =IF('Base Data'!A55<>"",AVERAGE('Base Data'!A55:T55),"") -> 6.949518602
A50: 46 | B50: =IF('Base Data'!A56<>"",AVERAGE('Base Data'!A56:T56),"") -> 5.123698656
A51: 47 | B51: =IF('Base Data'!A57<>"",AVERAGE('Base Data'!A57:T57),"") -> 7.51881638
A52: 48 | B52: =IF('Base Data'!A58<>"",AVERAGE('Base Data'!A58:T58),"") -> 6.246871963
A53: 49 | B53: =IF('Base Data'!A59<>"",AVERAGE('Base Data'!A59:T59),"") -> 6.940746538
A54: 50 | B54: =IF('Base Data'!A60<>"",AVERAGE('Base Data'!A60:T60),"") -> 5.804536611
A55: 51 | B55: =IF('Base Data'!A61<>"",AVERAGE('Base Data'!A61:T61),"") -> 6.762955741
A56: 52 | B56: =IF('Base Data'!A62<>"",AVERAGE('Base Data'!A62:T62),"") -> 6.265405663
A57: 53 | B57: =IF('Base Data'!A63<>"",AVERAGE('Base Data'!A63:T63),"") -> 6.580561139
A58: 54 | B58: =IF('Base Data'!A64<>"",AVERAGE('Base Data'!A64:T64),"") -> 5.82988212
A59: 55 | B59: =IF('Base Data'!A65<>"",AVERAGE('Base Data'!A65:T65),"") -> 6.658956432
A60: 56 | B60: =IF('Base Data'!A66<>"",AVERAGE('Base Data'!A66:T66),"") -> 6.770724257
A61: 57 | B61: =IF('Base Data'!A67<>"",AVERAGE('Base Data'!A67:T67),"") -> 6.743935435
A62: 58 | B62: =IF('Base Data'!A68<>"",AVERAGE('Base Data'!A68:T68),"") -> 5.956149325
A63: 59 | B63: =IF('Base Data'!A69<>"",AVERAGE('Base Data'!A69:T69),"") -> 6.765961896
A64: 60 | B64: =IF('Base Data'!A70<>"",AVERAGE('Base Data'!A70:T70),"") -> 5.945510668
A65: 61 | B65: =IF('Base Data'!A71<>"",AVERAGE('Base Data'!A71:T71),"") -> 7.00856123
A66: 62 | B66: =IF('Base Data'!A72<>"",AVERAGE('Base Data'!A72:T72),"") -> 5.922440266
A67: 63 | B67: =IF('Base Data'!A73<>"",AVERAGE('Base Data'!A73:T73),"") -> 6.492269026
A68: 64 | B68: =IF('Base Data'!A74<>"",AVERAGE('Base Data'!A74:T74),"") -> 7.466014696
A69: 65 | B69: =IF('Base Data'!A75<>"",AVERAGE('Base Data'!A75:T75),"") -> 6.298888523
A70: 66 | B70: =IF('Base Data'!A76<>"",AVERAGE('Base Data'!A76:T76),"") -> 7.05358305
A71: 67 | B71: =IF('Base Data'!A77<>"",AVERAGE('Base Data'!A77:T77),"") -> 6.848837638
A72: 68 | B72: =IF('Base Data'!A78<>"",AVERAGE('Base Data'!A78:T78),"") -> 6.516469067
A73: 69 | B73: =IF('Base Data'!A79<>"",AVERAGE('Base Data'!A79:T79),"") -> 8.237390011
A74: 70 | B74: =IF('Base Data'!A80<>"",AVERAGE('Base Data'!A80:T80),"") -> 5.923308411
A75: 71 | B75: =IF('Base Data'!A81<>"",AVERAGE('Base Data'!A81:T81),"") -> 8.366707082
A76: 72 | B76: =IF('Base Data'!A82<>"",AVERAGE('Base Data'!A82:T82),"") -> 7.010129163
A77: 73 | B77: =IF('Base Data'!A83<>"",AVERAGE('Base Data'!A83:T83),"") -> 8.545754472
A78: 74 | B78: =IF('Base Data'!A84<>"",AVERAGE('Base Data'!A84:T84),"") -> 6.658828732
A79: 75 | B79: =IF('Base Data'!A85<>"",AVERAGE('Base Data'!A85:T85),"") -> 7.782377915
A80: 76 | B80: =IF('Base Data'!A86<>"",AVERAGE('Base Data'!A86:T86),"") -> 5.80843652
A81: 77 | B81: =IF('Base Data'!A87<>"",AVERAGE('Base Data'!A87:T87),"") -> 7.766605279
A82: 78 | B82: =IF('Base Data'!A88<>"",AVERAGE('Base Data'!A88:T88),"") -> 6.47114498
A83: 79 | B83: =IF('Base Data'!A89<>"",AVERAGE('Base Data'!A89:T89),"") -> 8.244447664
A84: 80 | B84: =IF('Base Data'!A90<>"",AVERAGE('Base Data'!A90:T90),"") -> 6.586397966
A85: 81 | B85: =IF('Base Data'!A91<>"",AVERAGE('Base Data'!A91:T91),"") -> 7.588893132
A86: 82 | B86: =IF('Base Data'!A92<>"",AVERAGE('Base Data'!A92:T92),"") -> 7.919330545
A87: 83 | B87: =IF('Base Data'!A93<>"",AVERAGE('Base Data'!A93:T93),"") -> 7.492437222
A88: 84 | B88: =IF('Base Data'!A94<>"",AVERAGE('Base Data'!A94:T94),"") -> 8.156429159
A89: 85 | B89: =IF('Base Data'!A95<>"",AVERAGE('Base Data'!A95:T95),"") -> 7.607642634
A90: 86 | B90: =IF('Base Data'!A96<>"",AVERAGE('Base Data'!A96:T96),"") -> 7.647324139
A91: 87 | B91: =IF('Base Data'!A97<>"",AVERAGE('Base Data'!A97:T97),"") -> 7.60323801
A92: 88 | B92: =IF('Base Data'!A98<>"",AVERAGE('Base Data'!A98:T98),"") -> 7.72735919
A93: 89 | B93: =IF('Base Data'!A99<>"",AVERAGE('Base Data'!A99:T99),"") -> 7.775042585
A94: 90 | B94: =IF('Base Data'!A100<>"",AVERAGE('Base Data'!A100:T100),"") -> 7.332327283
A95: 91 | B95: =IF('Base Data'!A101<>"",AVERAGE('Base Data'!A101:T101),"") -> 7.530180675
A96: 92 | B96: =IF('Base Data'!A102<>"",AVERAGE('Base Data'!A102:T102),"") -> 7.482667538
A97: 93 | B97: =IF('Base Data'!A103<>"",AVERAGE('Base Data'!A103:T103),"") -> 8.078374083
A98: 94 | B98: =IF('Base Data'!A104<>"",AVERAGE('Base Data'!A104:T104),"") -> 7.676716985
A99: 95 | B99: =IF('Base Data'!A105<>"",AVERAGE('Base Data'!A105:T105),"") -> 7.815735347
A100: 96 | B100: =IF('Base Data'!A106<>"",AVERAGE('Base Data'!A106:T106),"") -> 7.745751811
A101: 97 | B101: =IF('Base Data'!A107<>"",AVERAGE('Base Data'!A107:T107),"") -> 7.774083436
A102: 98 | B102: =IF('Base Data'!A108<>"",AVERAGE('Base Data'!A108:T108),"") -> 7.753454392
A103: 99 | B103: =IF('Base Data'!A109<>"",AVERAGE('Base Data'!A109:T109),"") -> 7.183023384
A104: 100 | B104: =IF('Base Data'!A110<>"",AVERAGE('Base Data'!A110:T110),"") -> 7.328137547
A105: 101 | B105: =IF('Base Data'!A111<>"",AVERAGE('Base Data'!A111:T111),"") -> 7.325528706
A106: 102 | B106: =IF('Base Data'!A112<>"",AVERAGE('Base Data'!A112:T112),"") -> 7.947616439
A107: 103 | B107: =IF('Base Data'!A113<>"",AVERAGE('Base Data'!A113:T113),"") -> 7.116144153
A108: 104 | B108: =IF('Base Data'!A114<>"",AVERAGE('Base Data'!A114:T114),"") -> 7.729484635
A109: 105 | B109: =IF('Base Data'!A115<>"",AVERAGE('Base Data'!A115:T115),"") -> 7.820872867
A110: 106 | B110: =IF('Base Data'!A116<>"",AVERAGE('Base Data'!A116:T116),"") -> 7.727556679
A111: 107 | B111: =IF('Base Data'!A117<>"",AVERAGE('Base Data'!A117:T117),"") -> 7.89433493
A112: 108 | B112: =IF('Base Data'!A118<>"",AVERAGE('Base Data'!A118:T118),"") -> 8.36337293
A113: 109 | B113: =IF('Base Data'!A119<>"",AVERAGE('Base Data'!A119:T119),"") -> 8.040253533
A114: 110 | B114: =IF('Base Data'!A120<>"",AVERAGE('Base Data'!A120:T120),"") -> 7.521095477
A115: 111 | B115: =IF('Base Data'!A121<>"",AVERAGE('Base Data'!A121:T121),"") -> 8.480752651
A116: 112 | B116: =IF('Base Data'!A122<>"",AVERAGE('Base Data'!A122:T122),"") -> 7.894958217
A117: 113 | B117: =IF('Base Data'!A123<>"",AVERAGE('Base Data'!A123:T123),"") -> 8.175281521
A118: 114 | B118: =IF('Base Data'!A124<>"",AVERAGE('Base Data'!A124:T124),"") -> 7.450625694
A119: 115 | B119: =IF('Base Data'!A125<>"",AVERAGE('Base Data'!A125:T125),"") -> 8.392361259
A120: 116 | B120: =IF('Base Data'!A126<>"",AVERAGE('Base Data'!A126:T126),"") -> 7.772740645
A121: 117 | B121: =IF('Base Data'!A127<>"",AVERAGE('Base Data'!A127:T127),"") -> 8.853183804
A122: 118 | B122: =IF('Base Data'!A128<>"",AVERAGE('Base Data'!A128:T128),"") -> 8.100533172
A123: 119 | B123: =IF('Base Data'!A129<>"",AVERAGE('Base Data'!A129:T129),"") -> 7.79858874
A124: 120 | B124: =IF('Base Data'!A130<>"",AVERAGE('Base Data'!A130:T130),"") -> 8.868155508
A125: 121 | B125: =IF('Base Data'!A131<>"",AVERAGE('Base Data'!A131:T131),"") -> 8.084483103
A126: 122 | B126: =IF('Base Data'!A132<>"",AVERAGE('Base Data'!A132:T132),"") -> 8.632699209
A127: 123 | B127: =IF('Base Data'!A133<>"",AVERAGE('Base Data'!A133:T133),"") -> 7.808224702
A128: 124 | B128: =IF('Base Data'!A134<>"",AVERAGE('Base Data'!A134:T134),"") -> 8.720593805
A129: 125 | B129: =IF('Base Data'!A135<>"",AVERAGE('Base Data'!A135:T135),"") -> 7.907906982
A130: 126 | B130: =IF('Base Data'!A136<>"",AVERAGE('Base Data'!A136:T136),"") -> 9.224644106
A131: 127 | B131: =IF('Base Data'!A137<>"",AVERAGE('Base Data'!A137:T137),"") -> 7.694917583
A132: 128 | B132: =IF('Base Data'!A138<>"",AVERAGE('Base Data'!A138:T138),"") -> 9.38362699
A133: 129 | B133: =IF('Base Data'!A139<>"",AVERAGE('Base Data'!A139:T139),"") -> 8.483487463
A134: 130 | B134: =IF('Base Data'!A140<>"",AVERAGE('Base Data'!A140:T140),"") -> 9.215221115
A135: 131 | B135: =IF('Base Data'!A141<>"",AVERAGE('Base Data'!A141:T141),"") -> 8.278395534
A136: 132 | B136: =IF('Base Data'!A142<>"",AVERAGE('Base Data'!A142:T142),"") -> 9.102500321
A137: 133 | B137: =IF('Base Data'!A143<>"",AVERAGE('Base Data'!A143:T143),"") -> 8.351405628
A138: 134 | B138: =IF('Base Data'!A144<>"",AVERAGE('Base Data'!A144:T144),"") -> 8.250759397
A139: 135 | B139: =IF('Base Data'!A145<>"",AVERAGE('Base Data'!A145:T145),"") -> 8.489106099
A140: 136 | B140: =IF('Base Data'!A146<>"",AVERAGE('Base Data'!A146:T146),"") -> 8.16540443
A141: 137 | B141: =IF('Base Data'!A147<>"",AVERAGE('Base Data'!A147:T147),"") -> 9.058562717
A142: 138 | B142: =IF('Base Data'!A148<>"",AVERAGE('Base Data'!A148:T148),"") -> 8.228825983
A143: 139 | B143: =IF('Base Data'!A149<>"",AVERAGE('Base Data'!A149:T149),"") -> 8.394572654
A144: 140 | B144: =IF('Base Data'!A150<>"",AVERAGE('Base Data'!A150:T150),"") -> 8.566496886
A145: 141 | B145: =IF('Base Data'!A151<>"",AVERAGE('Base Data'!A151:T151),"") -> 7.976949502
A146: 142 | B146: =IF('Base Data'!A152<>"",AVERAGE('Base Data'!A152:T152),"") -> 8.484478264
A147: 143 | B147: =IF('Base Data'!A153<>"",AVERAGE('Base Data'!A153:T153),"") -> 8.431870853
A148: 144 | B148: =IF('Base Data'!A154<>"",AVERAGE('Base Data'!A154:T154),"") -> 8.453903959
A149: 145 | B149: =IF('Base Data'!A155<>"",AVERAGE('Base Data'!A155:T155),"") -> 8.878635202
A150: 146 | B150: =IF('Base Data'!A156<>"",AVERAGE('Base Data'!A156:T156),"") -> 8.90041354
A151: 147 | B151: =IF('Base Data'!A157<>"",AVERAGE('Base Data'!A157:T157),"") -> 8.502566454
A152: 148 | B152: =IF('Base Data'!A158<>"",AVERAGE('Base Data'!A158:T158),"") -> 8.690103349
A153: 149 | B153: =IF('Base Data'!A159<>"",AVERAGE('Base Data'!A159:T159),"") -> 8.969023095
A154: 150 | B154: =IF('Base Data'!A160<>"",AVERAGE('Base Data'!A160:T160),"") -> 8.924259292
A155: 151 | B155: =IF('Base Data'!A161<>"",AVERAGE('Base Data'!A161:T161),"") -> 9.015212588
A156: 152 | B156: =IF('Base Data'!A162<>"",AVERAGE('Base Data'!A162:T162),"") -> 9.034275263
A157: 153 | B157: =IF('Base Data'!A163<>"",AVERAGE('Base Data'!A163:T163),"") -> 8.222631701
A158: 154 | B158: =IF('Base Data'!A164<>"",AVERAGE('Base Data'!A164:T164),"") -> 8.734524748
A159: 155 | B159: =IF('Base Data'!A165<>"",AVERAGE('Base Data'!A165:T165),"") -> 9.464729312
A160: 156 | B160: =IF('Base Data'!A166<>"",AVERAGE('Base Data'!A166:T166),"") -> 8.958717894
A161: 157 | B161: =IF('Base Data'!A167<>"",AVERAGE('Base Data'!A167:T167),"") -> 9.14892318
A162: 158 | B162: =IF('Base Data'!A168<>"",AVERAGE('Base Data'!A168:T168),"") -> 9.872109349
A163: 159 | B163: =IF('Base Data'!A169<>"",AVERAGE('Base Data'!A169:T169),"") -> 9.785816564
A164: 160 | B164: =IF('Base Data'!A170<>"",AVERAGE('Base Data'!A170:T170),"") -> 9.245566587
A165: 161 | B165: =IF('Base Data'!A171<>"",AVERAGE('Base Data'!A171:T171),"") -> 9.379966715
A166: 162 | B166: =IF('Base Data'!A172<>"",AVERAGE('Base Data'!A172:T172),"") -> 9.923438121
A167: 163 | B167: =IF('Base Data'!A173<>"",AVERAGE('Base Data'!A173:T173),"") -> 9.100552245
A168: 164 | B168: =IF('Base Data'!A174<>"",AVERAGE('Base Data'!A174:T174),"") -> 9.306120023
A169: 165 | B169: =IF('Base Data'!A175<>"",AVERAGE('Base Data'!A175:T175),"") -> 8.823660869
A170: 166 | B170: =IF('Base Data'!A176<>"",AVERAGE('Base Data'!A176:T176),"") -> 9.503365205
A171: 167 | B171: =IF('Base Data'!A177<>"",AVERAGE('Base Data'!A177:T177),"") -> 9.285485798
A172: 168 | B172: =IF('Base Data'!A178<>"",AVERAGE('Base Data'!A178:T178),"") -> 9.861817738
A173: 169 | B173: =IF('Base Data'!A179<>"",AVERAGE('Base Data'!A179:T179),"") -> 9.146244424
A174: 170 | B174: =IF('Base Data'!A180<>"",AVERAGE('Base Data'!A180:T180),"") -> 9.66237003
A175: 171 | B175: =IF('Base Data'!A181<>"",AVERAGE('Base Data'!A181:T181),"") -> 9.620311115
A176: 172 | B176: =IF('Base Data'!A182<>"",AVERAGE('Base Data'!A182:T182),"") -> 9.271259811
A177: 173 | B177: =IF('Base Data'!A183<>"",AVERAGE('Base Data'!A183:T183),"") -> 10.27608601
A178: 174 | B178: =IF('Base Data'!A184<>"",AVERAGE('Base Data'!A184:T184),"") -> 8.322948073
A179: 175 | B179: =IF('Base Data'!A185<>"",AVERAGE('Base Data'!A185:T185),"") -> 10.74801884
A180: 176 | B180: =IF('Base Data'!A186<>"",AVERAGE('Base Data'!A186:T186),"") -> 8.53139392
A181: 177 | B181: =IF('Base Data'!A187<>"",AVERAGE('Base Data'!A187:T187),"") -> 10.0156873
A182: 178 | B182: =IF('Base Data'!A188<>"",AVERAGE('Base Data'!A188:T188),"") -> 8.507129174
A183: 179 | B183: =IF('Base Data'!A189<>"",AVERAGE('Base Data'!A189:T189),"") -> 9.959055526
A184: 180 | B184: =IF('Base Data'!A190<>"",AVERAGE('Base Data'!A190:T190),"") -> 8.908459144
A185: 181 | B185: =IF('Base Data'!A191<>"",AVERAGE('Base Data'!A191:T191),"") -> 10.01072149
A186: 182 | B186: =IF('Base Data'!A192<>"",AVERAGE('Base Data'!A192:T192),"") -> 9.070344339
A187: 183 | B187: =IF('Base Data'!A193<>"",AVERAGE('Base Data'!A193:T193),"") -> 9.599131397
A188: 184 | B188: =IF('Base Data'!A194<>"",AVERAGE('Base Data'!A194:T194),"") -> 9.258599033
A189: 185 | B189: =IF('Base Data'!A195<>"",AVERAGE('Base Data'!A195:T195),"") -> 10.25920076
A190: 186 | B190: =IF('Base Data'!A196<>"",AVERAGE('Base Data'!A196:T196),"") -> 9.255101372
A191: 187 | B191: =IF('Base Data'!A197<>"",AVERAGE('Base Data'!A197:T197),"") -> 9.982924807
A192: 188 | B192: =IF('Base Data'!A198<>"",AVERAGE('Base Data'!A198:T198),"") -> 9.833963522
A193: 189 | B193: =IF('Base Data'!A199<>"",AVERAGE('Base Data'!A199:T199),"") -> 9.447611045
A194: 190 | B194: =IF('Base Data'!A200<>"",AVERAGE('Base Data'!A200:T200),"") -> 9.789665132
A195: 191 | B195: =IF('Base Data'!A201<>"",AVERAGE('Base Data'!A201:T201),"") -> 9.302246116
A196: 192 | B196: =IF('Base Data'!A202<>"",AVERAGE('Base Data'!A202:T202),"") -> 9.919958382
A197: 193 | B197: =IF('Base Data'!A203<>"",AVERAGE('Base Data'!A203:T203),"") -> 8.885908667
A198: 194 | B198: =IF('Base Data'!A204<>"",AVERAGE('Base Data'!A204:T204),"") -> 10.0231911
A199: 195 | B199: =IF('Base Data'!A205<>"",AVERAGE('Base Data'!A205:T205),"") -> 8.481265074
A200: 196 | B200: =IF('Base Data'!A206<>"",AVERAGE('Base Data'!A206:T206),"") -> 10.28537179
A201: 197 | B201: =IF('Base Data'!A207<>"",AVERAGE('Base Data'!A207:T207),"") -> 9.299555323
... 803 more rows

Sheet MSER
A1: MSER Heuristic
C3: Min MSER | D3: Warm-up period | E3: Data points | F3: Accept/reject recommendation
C4: =MIN(C7:C65536) -> 0.0005234616446 | D4: 250 | E4: =MAX(A8:A65536) -> 1000 | F4: =IF(Warm_up<=E4/2,"Accept", "Reject") -> Accept
A6: Period | B6: Data | C6: MSER Value
A7: 0 | C7: 0.002748259151
A8: =IF(B8<>"",1,"") -> 1 | B8: =IF('Base Data'!A11<>"",AVERAGE('Base Data'!A11:T11),"") -> 5.507841984 | C8: 0.00272874464
A9: =IF(B9<>"",A8+1,"") -> 2 | B9: =IF('Base Data'!A12<>"",AVERAGE('Base Data'!A12:T12),"") -> 5.33079158 | C9: 0.002707288457
A10: =IF(B10<>"",A9+1,"") -> 3 | B10: =IF('Base Data'!A13<>"",AVERAGE('Base Data'!A13:T13),"") -> 5.600863027 | C10: 0.002688427048
A11: 4 | B11: =IF('Base Data'!A14<>"",AVERAGE('Base Data'!A14:T14),"") -> 4.595027772 | C11: 0.002658425756
A12: 5 | B12: =IF('Base Data'!A15<>"",AVERAGE('Base Data'!A15:T15),"") -> 6.133452716 | C12: 0.002644298249
A13: 6 | B13: =IF('Base Data'!A16<>"",AVERAGE('Base Data'!A16:T16),"") -> 5.218599835 | C13: 0.002621060556
A14: 7 | B14: =IF('Base Data'!A17<>"",AVERAGE('Base Data'!A17:T17),"") -> 6.120731782 | C14: 0.002606586661
A15: 8 | B15: =IF('Base Data'!A18<>"",AVERAGE('Base Data'!A18:T18),"") -> 5.917088646 | C15: 0.002590131562
A16: 9 | B16: =IF('Base Data'!A19<>"",AVERAGE('Base Data'!A19:T19),"") -> 6.166440944 | C16: 0.00257585298
A17: 10 | B17: =IF('Base Data'!A20<>"",AVERAGE('Base Data'!A20:T20),"") -> 5.775862088 | C17: 0.002557814224
A18: 11 | B18: =IF('Base Data'!A21<>"",AVERAGE('Base Data'!A21:T21),"") -> 5.838442058 | C18: 0.002540263365
A19: 12 | B19: =IF('Base Data'!A22<>"",AVERAGE('Base Data'!A22:T22),"") -> 5.564843831 | C19: 0.002519861289
A20: 13 | B20: =IF('Base Data'!A23<>"",AVERAGE('Base Data'!A23:T23),"") -> 5.83686562 | C20: 0.002502040614
A21: 14 | B21: =IF('Base Data'!A24<>"",AVERAGE('Base Data'!A24:T24),"") -> 5.498995535 | C21: 0.00248067685
A22: 15 | B22: =IF('Base Data'!A25<>"",AVERAGE('Base Data'!A25:T25),"") -> 5.478625922 | C22: 0.002458965607
A23: 16 | B23: =IF('Base Data'!A26<>"",AVERAGE('Base Data'!A26:T26),"") -> 5.886749996 | C23: 0.002441232169
A24: 17 | B24: =IF('Base Data'!A27<>"",AVERAGE('Base Data'!A27:T27),"") -> 5.250243381 | C24: 0.002416755825
A25: 18 | B25: =IF('Base Data'!A28<>"",AVERAGE('Base Data'!A28:T28),"") -> 6.21241111 | C25: 0.002401830983
A26: 19 | B26: =IF('Base Data'!A29<>"",AVERAGE('Base Data'!A29:T29),"") -> 5.031532141 | C26: 0.002374575931
A27: 20 | B27: =IF('Base Data'!A30<>"",AVERAGE('Base Data'!A30:T30),"") -> 5.543847381 | C27: 0.002352813537
A28: 21 | B28: =IF('Base Data'!A31<>"",AVERAGE('Base Data'!A31:T31),"") -> 6.114526192 | C28: 0.002336595552
A29: 22 | B29: =IF('Base Data'!A32<>"",AVERAGE('Base Data'!A32:T32),"") -> 5.743819935 | C29: 0.002316636149
A30: 23 | B30: =IF('Base Data'!A33<>"",AVERAGE('Base Data'!A33:T33),"") -> 6.224603209 | C30: 0.00230120613
A31: 24 | B31: =IF('Base Data'!A34<>"",AVERAGE('Base Data'!A34:T34),"") -> 6.37169483 | C31: 0.002287002281
A32: 25 | B32: =IF('Base Data'!A35<>"",AVERAGE('Base Data'!A35:T35),"") -> 5.261763329 | C32: 0.002261457422
A33: 26 | B33: =IF('Base Data'!A36<>"",AVERAGE('Base Data'!A36:T36),"") -> 6.791313972 | C33: 0.002250600478
A34: 27 | B34: =IF('Base Data'!A37<>"",AVERAGE('Base Data'!A37:T37),"") -> 4.586595978 | C34: 0.002216603399
A35: 28 | B35: =IF('Base Data'!A38<>"",AVERAGE('Base Data'!A38:T38),"") -> 6.145993754 | C35: 0.002199812573
A36: 29 | B36: =IF('Base Data'!A39<>"",AVERAGE('Base Data'!A39:T39),"") -> 5.634019463 | C36: 0.002177734116
A37: 30 | B37: =IF('Base Data'!A40<>"",AVERAGE('Base Data'!A40:T40),"") -> 5.59060603 | C37: 0.002155039633
A38: 31 | B38: =IF('Base Data'!A41<>"",AVERAGE('Base Data'!A41:T41),"") -> 5.776972661 | C38: 0.002134167182
A39: 32 | B39: =IF('Base Data'!A42<>"",AVERAGE('Base Data'!A42:T42),"") -> 5.850637241 | C39: 0.002113914288
A40: 33 | B40: =IF('Base Data'!A43<>"",AVERAGE('Base Data'!A43:T43),"") -> 4.942914698 | C40: 0.00208327847
A41: 34 | B41: =IF('Base Data'!A44<>"",AVERAGE('Base Data'!A44:T44),"") -> 6.580485355 | C41: 0.002069691678
A42: 35 | B42: =IF('Base Data'!A45<>"",AVERAGE('Base Data'!A45:T45),"") -> 6.520648895 | C42: 0.002055474429
A43: 36 | B43: =IF('Base Data'!A46<>"",AVERAGE('Base Data'!A46:T46),"") -> 5.109493572 | C43: 0.002026365029
A44: 37 | B44: =IF('Base Data'!A47<>"",AVERAGE('Base Data'!A47:T47),"") -> 7.322949089 | C44: 0.002018415662
A45: 38 | B45: =IF('Base Data'!A48<>"",AVERAGE('Base Data'!A48:T48),"") -> 6.036505852 | C45: 0.001999248685
A46: 39 | B46: =IF('Base Data'!A49<>"",AVERAGE('Base Data'!A49:T49),"") -> 6.829758034 | C46: 0.001987275283
A47: 40 | B47: =IF('Base Data'!A50<>"",AVERAGE('Base Data'!A50:T50),"") -> 6.201197195 | C47: 0.00196950628
A48: 41 | B48: =IF('Base Data'!A51<>"",AVERAGE('Base Data'!A51:T51),"") -> 7.198284369 | C48: 0.001960295349
A49: 42 | B49: =IF('Base Data'!A52<>"",AVERAGE('Base Data'!A52:T52),"") -> 6.466797904 | C49: 0.001944837112
A50: 43 | B50: =IF('Base Data'!A53<>"",AVERAGE('Base Data'!A53:T53),"") -> 6.269327882 | C50: 0.001927391738
A51: 44 | B51: =IF('Base Data'!A54<>"",AVERAGE('Base Data'!A54:T54),"") -> 6.308473634 | C51: 0.001910204675
A52: 45 | B52: =IF('Base Data'!A55<>"",AVERAGE('Base Data'!A55:T55),"") -> 6.949518602 | C52: 0.001898649951
A53: 46 | B53: =IF('Base Data'!A56<>"",AVERAGE('Base Data'!A56:T56),"") -> 5.123698656 | C53: 0.001868187646
A54: 47 | B54: =IF('Base Data'!A57<>"",AVERAGE('Base Data'!A57:T57),"") -> 7.51881638 | C54: 0.001860794295
A55: 48 | B55: =IF('Base Data'!A58<>"",AVERAGE('Base Data'!A58:T58),"") -> 6.246871963 | C55: 0.001842524479
A56: 49 | B56: =IF('Base Data'!A59<>"",AVERAGE('Base Data'!A59:T59),"") -> 6.940746538 | C56: 0.001830493232
A57: 50 | B57: =IF('Base Data'!A60<>"",AVERAGE('Base Data'!A60:T60),"") -> 5.804536611 | C57: 0.001807359709
A58: 51 | B58: =IF('Base Data'!A61<>"",AVERAGE('Base Data'!A61:T61),"") -> 6.762955741 | C58: 0.001793580206
A59: 52 | B59: =IF('Base Data'!A62<>"",AVERAGE('Base Data'!A62:T62),"") -> 6.265405663 | C59: 0.001775002136
A60: 53 | B60: =IF('Base Data'!A63<>"",AVERAGE('Base Data'!A63:T63),"") -> 6.580561139 | C60: 0.001759343174
A61: 54 | B61: =IF('Base Data'!A64<>"",AVERAGE('Base Data'!A64:T64),"") -> 5.82988212 | C61: 0.001735921518
A62: 55 | B62: =IF('Base Data'!A65<>"",AVERAGE('Base Data'!A65:T65),"") -> 6.658956432 | C62: 0.001720745034
A63: 56 | B63: =IF('Base Data'!A66<>"",AVERAGE('Base Data'!A66:T66),"") -> 6.770724257 | C63: 0.001706479408
A64: 57 | B64: =IF('Base Data'!A67<>"",AVERAGE('Base Data'!A67:T67),"") -> 6.743935435 | C64: 0.001691864674
A65: 58 | B65: =IF('Base Data'!A68<>"",AVERAGE('Base Data'!A68:T68),"") -> 5.956149325 | C65: 0.00166927669
A66: 59 | B66: =IF('Base Data'!A69<>"",AVERAGE('Base Data'!A69:T69),"") -> 6.765961896 | C66: 0.001654628824
A67: 60 | B67: =IF('Base Data'!A70<>"",AVERAGE('Base Data'!A70:T70),"") -> 5.945510668 | C67: 0.00163164013
A68: 61 | B68: =IF('Base Data'!A71<>"",AVERAGE('Base Data'!A71:T71),"") -> 7.00856123 | C68: 0.00161890937
A69: 62 | B69: =IF('Base Data'!A72<>"",AVERAGE('Base Data'!A72:T72),"") -> 5.922440266 | C69: 0.001595376559
A70: 63 | B70: =IF('Base Data'!A73<>"",AVERAGE('Base Data'!A73:T73),"") -> 6.492269026 | C70: 0.001577657799
A71: 64 | B71: =IF('Base Data'!A74<>"",AVERAGE('Base Data'!A74:T74),"") -> 7.466014696 | C71: 0.001568327567
A72: 65 | B72: =IF('Base Data'!A75<>"",AVERAGE('Base Data'!A75:T75),"") -> 6.298888523 | C72: 0.001548431149
A73: 66 | B73: =IF('Base Data'!A76<>"",AVERAGE('Base Data'!A76:T76),"") -> 7.05358305 | C73: 0.001535562829
A74: =IF(B74<>"",A73+1,"") -> 67 | B74: =IF('Base Data'!A77<>"",AVERAGE('Base Data'!A77:T77),"") -> 6.848837638 | C74: 0.001520780229
A75: 68 | B75: =IF('Base Data'!A78<>"",AVERAGE('Base Data'!A78:T78),"") -> 6.516469067 | C75: 0.001502718092
A76: 69 | B76: =IF('Base Data'!A79<>"",AVERAGE('Base Data'!A79:T79),"") -> 8.237390011 | C76: 0.001498239839
A77: 70 | B77: =IF('Base Data'!A80<>"",AVERAGE('Base Data'!A80:T80),"") -> 5.923308411 | C77: 0.001473640599
A78: 71 | B78: =IF('Base Data'!A81<>"",AVERAGE('Base Data'!A81:T81),"") -> 8.366707082 | C78: 0.001469785337
A79: 72 | B79: =IF('Base Data'!A82<>"",AVERAGE('Base Data'!A82:T82),"") -> 7.010129163 | C79: 0.001455967281
A80: 73 | B80: =IF('Base Data'!A83<>"",AVERAGE('Base Data'!A83:T83),"") -> 8.545754472 | C80: 0.001453003666
A81: 74 | B81: =IF('Base Data'!A84<>"",AVERAGE('Base Data'!A84:T84),"") -> 6.658828732 | C81: 0.001435737194
A82: 75 | B82: =IF('Base Data'!A85<>"",AVERAGE('Base Data'!A85:T85),"") -> 7.782377915 | C82: 0.001427880913
A83: 76 | B83: =IF('Base Data'!A86<>"",AVERAGE('Base Data'!A86:T86),"") -> 5.80843652 | C83: 0.001401185511
A84: 77 | B84: =IF('Base Data'!A87<>"",AVERAGE('Base Data'!A87:T87),"") -> 7.766605279 | C84: 0.001393037599
A85: 78 | B85: =IF('Base Data'!A88<>"",AVERAGE('Base Data'!A88:T88),"") -> 6.47114498 | C85: 0.001373411001
A86: 79 | B86: =IF('Base Data'!A89<>"",AVERAGE('Base Data'!A89:T89),"") -> 8.244447664 | C86: 0.001368325419
A87: 80 | B87: =IF('Base Data'!A90<>"",AVERAGE('Base Data'!A90:T90),"") -> 6.586397966 | C87: 0.001349656868
A88: 81 | B88: =IF('Base Data'!A91<>"",AVERAGE('Base Data'!A91:T91),"") -> 7.588893132 | C88: 0.001339851916
A89: 82 | B89: =IF('Base Data'!A92<>"",AVERAGE('Base Data'!A92:T92),"") -> 7.919330545 | C89: 0.001332423818
A90: 83 | B90: =IF('Base Data'!A93<>"",AVERAGE('Base Data'!A93:T93),"") -> 7.492437222 | C90: 0.001321712695
A91: 84 | B91: =IF('Base Data'!A94<>"",AVERAGE('Base Data'!A94:T94),"") -> 8.156429159 | C91: 0.00131576626
A92: 85 | B92: =IF('Base Data'!A95<>"",AVERAGE('Base Data'!A95:T95),"") -> 7.607642634 | C92: 0.001305828799
A93: 86 | B93: =IF('Base Data'!A96<>"",AVERAGE('Base Data'!A96:T96),"") -> 7.647324139 | C93: 0.001296130329
A94: 87 | B94: =IF('Base Data'!A97<>"",AVERAGE('Base Data'!A97:T97),"") -> 7.60323801 | C94: 0.001286011177
A95: 88 | B95: =IF('Base Data'!A98<>"",AVERAGE('Base Data'!A98:T98),"") -> 7.72735919 | C95: 0.001276778887
A96: 89 | B96: =IF('Base Data'!A99<>"",AVERAGE('Base Data'!A99:T99),"") -> 7.775042585 | C96: 0.00126784193
A97: 90 | B97: =IF('Base Data'!A100<>"",AVERAGE('Base Data'!A100:T100),"") -> 7.332327283 | C97: 0.001255247764
A98: 91 | B98: =IF('Base Data'!A101<>"",AVERAGE('Base Data'!A101:T101),"") -> 7.530180675 | C98: 0.001244230929
A99: 92 | B99: =IF('Base Data'!A102<>"",AVERAGE('Base Data'!A102:T102),"") -> 7.482667538 | C99: 0.001232736929
A100: 93 | B100: =IF('Base Data'!A103<>"",AVERAGE('Base Data'!A103:T103),"") -> 8.078374083 | C100: 0.001225702836
A101: 94 | B101: =IF('Base Data'!A104<>"",AVERAGE('Base Data'!A104:T104),"") -> 7.676716985 | C101: 0.001215632443
A102: 95 | B102: =IF('Base Data'!A105<>"",AVERAGE('Base Data'!A105:T105),"") -> 7.815735347 | C102: 0.001206565757
A103: 96 | B103: =IF('Base Data'!A106<>"",AVERAGE('Base Data'!A106:T106),"") -> 7.745751811 | C103: 0.001196891892
A104: 97 | B104: =IF('Base Data'!A107<>"",AVERAGE('Base Data'!A107:T107),"") -> 7.774083436 | C104: 0.001187366061
A105: 98 | B105: =IF('Base Data'!A108<>"",AVERAGE('Base Data'!A108:T108),"") -> 7.753454392 | C105: 0.001177606553
A106: 99 | B106: =IF('Base Data'!A109<>"",AVERAGE('Base Data'!A109:T109),"") -> 7.183023384 | C106: 0.001162892735
A107: 100 | B107: =IF('Base Data'!A110<>"",AVERAGE('Base Data'!A110:T110),"") -> 7.328137547 | C107: 0.001149394938
A108: 101 | B108: =IF('Base Data'!A111<>"",AVERAGE('Base Data'!A111:T111),"") -> 7.325528706 | C108: 0.001135776426
A109: 102 | B109: =IF('Base Data'!A112<>"",AVERAGE('Base Data'!A112:T112),"") -> 7.947616439 | C109: 0.001127171322
A110: 103 | B110: =IF('Base Data'!A113<>"",AVERAGE('Base Data'!A113:T113),"") -> 7.116144153 | C110: 0.001111424851
A111: 104 | B111: =IF('Base Data'!A114<>"",AVERAGE('Base Data'!A114:T114),"") -> 7.729484635 | C111: 0.001100968306
A112: 105 | B112: =IF('Base Data'!A115<>"",AVERAGE('Base Data'!A115:T115),"") -> 7.820872867 | C112: 0.001091160925
A113: 106 | B113: =IF('Base Data'!A116<>"",AVERAGE('Base Data'!A116:T116),"") -> 7.727556679 | C113: 0.001080533105
A114: 107 | B114: =IF('Base Data'!A117<>"",AVERAGE('Base Data'!A117:T117),"") -> 7.89433493 | C114: 0.001071146649
A115: 108 | B115: =IF('Base Data'!A118<>"",AVERAGE('Base Data'!A118:T118),"") -> 8.36337293 | C115: 0.001065040839
A116: 109 | B116: =IF('Base Data'!A119<>"",AVERAGE('Base Data'!A119:T119),"") -> 8.040253533 | C116: 0.001056627818
A117: 110 | B117: =IF('Base Data'!A120<>"",AVERAGE('Base Data'!A120:T120),"") -> 7.521095477 | C117: 0.001043957871
A118: 111 | B118: =IF('Base Data'!A121<>"",AVERAGE('Base Data'!A121:T121),"") -> 8.480752651 | C118: 0.001038434763
A119: 112 | B119: =IF('Base Data'!A122<>"",AVERAGE('Base Data'!A122:T122),"") -> 7.894958217 | C119: 0.001028709507
A120: 113 | B120: =IF('Base Data'!A123<>"",AVERAGE('Base Data'!A123:T123),"") -> 8.175281521 | C120: 0.001021018169
A121: 114 | B121: =IF('Base Data'!A124<>"",AVERAGE('Base Data'!A124:T124),"") -> 7.450625694 | C121: 0.00100739518
A122: 115 | B122: =IF('Base Data'!A125<>"",AVERAGE('Base Data'!A125:T125),"") -> 8.392361259 | C122: 0.001001063149
A123: 116 | B123: =IF('Base Data'!A126<>"",AVERAGE('Base Data'!A126:T126),"") -> 7.772740645 | C123: 0.0009900596246
A124: 117 | B124: =IF('Base Data'!A127<>"",AVERAGE('Base Data'!A127:T127),"") -> 8.853183804 | C124: 0.0009864213469
A125: 118 | B125: =IF('Base Data'!A128<>"",AVERAGE('Base Data'!A128:T128),"") -> 8.100533172 | C125: 0.0009778628453
A126: 119 | B126: =IF('Base Data'!A129<>"",AVERAGE('Base Data'!A129:T129),"") -> 7.79858874 | C126: 0.0009668591397
A127: 120 | B127: =IF('Base Data'!A130<>"",AVERAGE('Base Data'!A130:T130),"") -> 8.868155508 | C127: 0.0009631681823
A128: 121 | B128: =IF('Base Data'!A131<>"",AVERAGE('Base Data'!A131:T131),"") -> 8.084483103 | C128: 0.00095429723
A129: 122 | B129: =IF('Base Data'!A132<>"",AVERAGE('Base Data'!A132:T132),"") -> 8.632699209 | C129: 0.0009491392979
A130: 123 | B130: =IF('Base Data'!A133<>"",AVERAGE('Base Data'!A133:T133),"") -> 7.808224702 | C130: 0.0009379381434
A131: 124 | B131: =IF('Base Data'!A134<>"",AVERAGE('Base Data'!A134:T134),"") -> 8.720593805 | C131: 0.0009332126913
A132: 125 | B132: =IF('Base Data'!A135<>"",AVERAGE('Base Data'!A135:T135),"") -> 7.907906982 | C132: 0.0009226922285
A133: 126 | B133: =IF('Base Data'!A136<>"",AVERAGE('Base Data'!A136:T136),"") -> 9.224644106 | C133: 0.0009205755864
A134: 127 | B134: =IF('Base Data'!A137<>"",AVERAGE('Base Data'!A137:T137),"") -> 7.694917583 | C134: 0.0009081211769
A135: 128 | B135: =IF('Base Data'!A138<>"",AVERAGE('Base Data'!A138:T138),"") -> 9.38362699 | C135: 0.0009066531057
A136: 129 | B136: =IF('Base Data'!A139<>"",AVERAGE('Base Data'!A139:T139),"") -> 8.483487463 | C136: 0.0009001815459
A137: 130 | B137: =IF('Base Data'!A140<>"",AVERAGE('Base Data'!A140:T140),"") -> 9.215221115 | C137: 0.0008978877414
A138: =IF(B138<>"",A137+1,"") -> 131 | B138: =IF('Base Data'!A141<>"",AVERAGE('Base Data'!A141:T141),"") -> 8.278395534 | C138: 0.0008898845646
A139: 132 | B139: =IF('Base Data'!A142<>"",AVERAGE('Base Data'!A142:T142),"") -> 9.102500321 | C139: 0.0008869642265
A140: 133 | B140: =IF('Base Data'!A143<>"",AVERAGE('Base Data'!A143:T143),"") -> 8.351405628 | C140: 0.000879383459
A141: 134 | B141: =IF('Base Data'!A144<>"",AVERAGE('Base Data'!A144:T144),"") -> 8.250759397 | C141: 0.0008710037584
A142: 135 | B142: =IF('Base Data'!A145<>"",AVERAGE('Base Data'!A145:T145),"") -> 8.489106099 | C142: 0.0008642695568
A143: 136 | B143: =IF('Base Data'!A146<>"",AVERAGE('Base Data'!A146:T146),"") -> 8.16540443 | C143: 0.0008551154309
A144: 137 | B144: =IF('Base Data'!A147<>"",AVERAGE('Base Data'!A147:T147),"") -> 9.058562717 | C144: 0.000851757843
A145: 138 | B145: =IF('Base Data'!A148<>"",AVERAGE('Base Data'!A148:T148),"") -> 8.228825983 | C145: 0.0008429722413
A146: 139 | B146: =IF('Base Data'!A149<>"",AVERAGE('Base Data'!A149:T149),"") -> 8.394572654 | C146: 0.0008353486378
A147: 140 | B147: =IF('Base Data'!A150<>"",AVERAGE('Base Data'!A150:T150),"") -> 8.566496886 | C147: 0.0008288694175
A148: 141 | B148: =IF('Base Data'!A151<>"",AVERAGE('Base Data'!A151:T151),"") -> 7.976949502 | C148: 0.0008178628359
A149: 142 | B149: =IF('Base Data'!A152<>"",AVERAGE('Base Data'!A152:T152),"") -> 8.484478264 | C149: 0.0008106944067
A150: 143 | B150: =IF('Base Data'!A153<>"",AVERAGE('Base Data'!A153:T153),"") -> 8.431870853 | C150: 0.0008030936482
A151: 144 | B151: =IF('Base Data'!A154<>"",AVERAGE('Base Data'!A154:T154),"") -> 8.453903959 | C151: 0.0007955926042
A152: 145 | B152: =IF('Base Data'!A155<>"",AVERAGE('Base Data'!A155:T155),"") -> 8.878635202 | C152: 0.0007908385943
A153: 146 | B153: =IF('Base Data'!A156<>"",AVERAGE('Base Data'!A156:T156),"") -> 8.90041354 | C153: 0.0007861771103
A154: 147 | B154: =IF('Base Data'!A157<>"",AVERAGE('Base Data'!A157:T157),"") -> 8.502566454 | C154: 0.0007788662704
A155: 148 | B155: =IF('Base Data'!A158<>"",AVERAGE('Base Data'!A158:T158),"") -> 8.690103349 | C155: 0.0007727857621
A156: 149 | B156: =IF('Base Data'!A159<>"",AVERAGE('Base Data'!A159:T159),"") -> 8.969023095 | C156: 0.0007684006001
A157: 150 | B157: =IF('Base Data'!A160<>"",AVERAGE('Base Data'!A160:T160),"") -> 8.924259292 | C157: 0.0007637098854
A158: 151 | B158: =IF('Base Data'!A161<>"",AVERAGE('Base Data'!A161:T161),"") -> 9.015212588 | C158: 0.0007595181592
A159: 152 | B159: =IF('Base Data'!A162<>"",AVERAGE('Base Data'!A162:T162),"") -> 9.034275263 | C159: 0.000755400719
A160: 153 | B160: =IF('Base Data'!A163<>"",AVERAGE('Base Data'!A163:T163),"") -> 8.222631701 | C160: 0.0007456448967
A161: 154 | B161: =IF('Base Data'!A164<>"",AVERAGE('Base Data'!A164:T164),"") -> 8.734524748 | C161: 0.0007395756458
A162: 155 | B162: =IF('Base Data'!A165<>"",AVERAGE('Base Data'!A165:T165),"") -> 9.464729312 | C162: 0.0007375650887
A163: 156 | B163: =IF('Base Data'!A166<>"",AVERAGE('Base Data'!A166:T166),"") -> 8.958717894 | C163: 0.0007328368786
A164: 157 | B164: =IF('Base Data'!A167<>"",AVERAGE('Base Data'!A167:T167),"") -> 9.14892318 | C164: 0.0007291709207
A165: 158 | B165: =IF('Base Data'!A168<>"",AVERAGE('Base Data'!A168:T168),"") -> 9.872109349 | C165: 0.0007287443929
A166: 159 | B166: =IF('Base Data'!A169<>"",AVERAGE('Base Data'!A169:T169),"") -> 9.785816564 | C166: 0.0007279937121
A167: 160 | B167: =IF('Base Data'!A170<>"",AVERAGE('Base Data'!A170:T170),"") -> 9.245566587 | C167: 0.0007247803089
A168: 161 | B168: =IF('Base Data'!A171<>"",AVERAGE('Base Data'!A171:T171),"") -> 9.379966715 | C168: 0.0007222283736
A169: 162 | B169: =IF('Base Data'!A172<>"",AVERAGE('Base Data'!A172:T172),"") -> 9.923438121 | C169: 0.0007219242958
A170: 163 | B170: =IF('Base Data'!A173<>"",AVERAGE('Base Data'!A173:T173),"") -> 9.100552245 | C170: 0.0007178290271
A171: 164 | B171: =IF('Base Data'!A174<>"",AVERAGE('Base Data'!A174:T174),"") -> 9.306120023 | C171: 0.0007148292884
A172: 165 | B172: =IF('Base Data'!A175<>"",AVERAGE('Base Data'!A175:T175),"") -> 8.823660869 | C172: 0.0007089441419
A173: 166 | B173: =IF('Base Data'!A176<>"",AVERAGE('Base Data'!A176:T176),"") -> 9.503365205 | C173: 0.0007068574236
A174: 167 | B174: =IF('Base Data'!A177<>"",AVERAGE('Base Data'!A177:T177),"") -> 9.285485798 | C174: 0.0007036578285
A175: 168 | B175: =IF('Base Data'!A178<>"",AVERAGE('Base Data'!A178:T178),"") -> 9.861817738 | C175: 0.0007030266966
A176: 169 | B176: =IF('Base Data'!A179<>"",AVERAGE('Base Data'!A179:T179),"") -> 9.146244424 | C176: 0.0006990036872
A177: 170 | B177: =IF('Base Data'!A180<>"",AVERAGE('Base Data'!A180:T180),"") -> 9.66237003 | C177: 0.0006975440339
A178: 171 | B178: =IF('Base Data'!A181<>"",AVERAGE('Base Data'!A181:T181),"") -> 9.620311115 | C178: 0.0006958837005
A179: 172 | B179: =IF('Base Data'!A182<>"",AVERAGE('Base Data'!A182:T182),"") -> 9.271259811 | C179: 0.0006924781161
A180: 173 | B180: =IF('Base Data'!A183<>"",AVERAGE('Base Data'!A183:T183),"") -> 10.27608601 | C180: 0.0006930654727
A181: 174 | B181: =IF('Base Data'!A184<>"",AVERAGE('Base Data'!A184:T184),"") -> 8.322948073 | C181: 0.0006830808081
A182: 175 | B182: =IF('Base Data'!A185<>"",AVERAGE('Base Data'!A185:T185),"") -> 10.74801884 | C182: 0.0006845101907
A183: 176 | B183: =IF('Base Data'!A186<>"",AVERAGE('Base Data'!A186:T186),"") -> 8.53139392 | C183: 0.0006760931992
A184: 177 | B184: =IF('Base Data'!A187<>"",AVERAGE('Base Data'!A187:T187),"") -> 10.0156873 | C184: 0.0006758459949
A185: 178 | B185: =IF('Base Data'!A188<>"",AVERAGE('Base Data'!A188:T188),"") -> 8.507129174 | C185: 0.0006671373366
A186: 179 | B186: =IF('Base Data'!A189<>"",AVERAGE('Base Data'!A189:T189),"") -> 9.959055526 | C186: 0.0006666517286
A187: 180 | B187: =IF('Base Data'!A190<>"",AVERAGE('Base Data'!A190:T190),"") -> 8.908459144 | C187: 0.0006607655018
A188: 181 | B188: =IF('Base Data'!A191<>"",AVERAGE('Base Data'!A191:T191),"") -> 10.01072149 | C188: 0.0006604233152
A189: 182 | B189: =IF('Base Data'!A192<>"",AVERAGE('Base Data'!A192:T192),"") -> 9.070344339 | C189: 0.0006555134761
A190: 183 | B190: =IF('Base Data'!A193<>"",AVERAGE('Base Data'!A193:T193),"") -> 9.599131397 | C190: 0.0006534638473
A191: 184 | B191: =IF('Base Data'!A194<>"",AVERAGE('Base Data'!A194:T194),"") -> 9.258599033 | C191: 0.000649613646
A192: 185 | B192: =IF('Base Data'!A195<>"",AVERAGE('Base Data'!A195:T195),"") -> 10.25920076 | C192: 0.0006499767076
A193: 186 | B193: =IF('Base Data'!A196<>"",AVERAGE('Base Data'!A196:T196),"") -> 9.255101372 | C193: 0.0006460550175
A194: 187 | B194: =IF('Base Data'!A197<>"",AVERAGE('Base Data'!A197:T197),"") -> 9.982924807 | C194: 0.0006455203423
A195: 188 | B195: =IF('Base Data'!A198<>"",AVERAGE('Base Data'!A198:T198),"") -> 9.833963522 | C195: 0.0006444046959
A196: 189 | B196: =IF('Base Data'!A199<>"",AVERAGE('Base Data'!A199:T199),"") -> 9.447611045 | C196: 0.0006414713523
A197: 190 | B197: =IF('Base Data'!A200<>"",AVERAGE('Base Data'!A200:T200),"") -> 9.789665132 | C197: 0.0006401354851
A198: 191 | B198: =IF('Base Data'!A201<>"",AVERAGE('Base Data'!A201:T201),"") -> 9.302246116 | C198: 0.0006363508035
A199: 192 | B199: =IF('Base Data'!A202<>"",AVERAGE('Base Data'!A202:T202),"") -> 9.919958382 | C199: 0.0006355041304
A200: 193 | B200: =IF('Base Data'!A203<>"",AVERAGE('Base Data'!A203:T203),"") -> 8.885908667 | C200: 0.0006289896948
A201: 194 | B201: =IF('Base Data'!A204<>"",AVERAGE('Base Data'!A204:T204),"") -> 10.0231911 | C201: 0.0006284845209
A202: =IF(B202<>"",A201+1,"") -> 195 | B202: =IF('Base Data'!A205<>"",AVERAGE('Base Data'!A205:T205),"") -> 8.481265074 | C202: 0.0006187544055
... 805 more rows
